[Event "Titled Tuesday Blitz May 9 Early 2023"]
[White "Molina, Roberto Junio Brito"]
[Black "Maurizzi, Marc`Andria"]
[WhiteFideId "2109450"]
[BlackFideId "36083534"]
[WhiteElo "2376"]
[BlackElo "2421"]
[Result "1-0"]
[Round "05"]
[TimeControl "180+2"]
[Date "2023.05.09"]
[WhiteClock "0:00:06"]
[BlackClock "0:00:00"]

1. d4 {[%clk 0:03:00]}  Nf6 {[%clk 0:02:57]} 2. e3 {[%clk 0:03:01]}  g6 {[%clk 0:02:56]} 3. Nf3 {[%clk 0:03:02]}  Bg7 {[%clk 0:02:57]} 4. b3 {[%clk 0:03:03]}  O-O {[%clk 0:02:58]} 5. Bb2 {[%clk 0:03:04]}  c5 {[%clk 0:02:57]} 6. dxc5 {[%clk 0:03:05]}  Qa5+ {[%clk 0:02:47]} 7. Nbd2 {[%clk 0:03:04]}  Qxc5 {[%clk 0:02:41]} 8. a3 {[%clk 0:03:04]}  d6 {[%clk 0:02:41]} 9. b4 {[%clk 0:03:04]}  Qc7 {[%clk 0:02:42]} 10. c4 {[%clk 0:03:03]}  b6 {[%clk 0:02:35]} 11. Rc1 {[%clk 0:03:03]}  Nbd7 {[%clk 0:02:31]} 12. Be2 {[%clk 0:03:04]}  a5 {[%clk 0:02:31]} 13. O-O {[%clk 0:03:04]}  axb4 {[%clk 0:02:32]} 14. axb4 {[%clk 0:03:05]}  e5 {[%clk 0:02:27]} 15. Qb3 {[%clk 0:03:03]}  Bb7 {[%clk 0:02:27]} 16. Rfd1 {[%clk 0:03:00]}  Rfc8 {[%clk 0:02:21]} 17. h3 {[%clk 0:02:51]}  h6 {[%clk 0:02:21]} 18. Ra1 {[%clk 0:02:45]}  Bc6 {[%clk 0:02:21]} 19. Rdc1 {[%clk 0:02:43]}  Qb7 {[%clk 0:02:08]} 20. Ne1 {[%clk 0:02:31]}  b5 {[%clk 0:01:56]} 21. cxb5 {[%clk 0:02:17]}  Bxb5 {[%clk 0:01:56]} 22. Rxa8 {[%clk 0:02:13]}  Rxa8 {[%clk 0:01:38]} 23. Bf3 {[%clk 0:02:06]}  d5 {[%clk 0:01:30]} 24. Ra1 {[%clk 0:01:53]}  Rxa1 {[%clk 0:01:29]} 25. Bxa1 {[%clk 0:01:54]}  h5 {[%clk 0:01:12]} 26. Bb2 {[%clk 0:01:53]}  Bh6 {[%clk 0:01:09]} 27. Nc2 {[%clk 0:01:47]}  Bf8 {[%clk 0:01:00]} 28. Bc3 {[%clk 0:01:37]}  Qc6 {[%clk 0:00:59]} 29. Qb2 {[%clk 0:01:36]}  Bd6 {[%clk 0:00:53]} 30. Nb3 {[%clk 0:01:32]}  Qc7 {[%clk 0:00:54]} 31. Na3 {[%clk 0:01:28]}  Ba4 {[%clk 0:00:47]} 32. Be2 {[%clk 0:01:26]}  h4 {[%clk 0:00:46]} 33. Nb5 {[%clk 0:01:24]}  Bxb5 {[%clk 0:00:45]} 34. Bxb5 {[%clk 0:01:25]}  Nb6 {[%clk 0:00:46]} 35. Nc5 {[%clk 0:01:19]}  Nc4 {[%clk 0:00:40]} 36. Bxc4 {[%clk 0:01:17]}  dxc4 {[%clk 0:00:41]} 37. Na6 {[%clk 0:01:10]}  Qb7 {[%clk 0:00:40]} 38. b5 {[%clk 0:01:07]}  Ne4 {[%clk 0:00:40]} 39. Bxe5 {[%clk 0:01:02]}  c3 {[%clk 0:00:24]} 40. Bxc3 {[%clk 0:01:00]}  Nxc3 {[%clk 0:00:25]} 41. Qxc3 {[%clk 0:01:01]}  Qxb5 {[%clk 0:00:26]} 42. Qc8+ {[%clk 0:00:52]}  Kh7 {[%clk 0:00:27]} 43. g3 {[%clk 0:00:43]}  hxg3 {[%clk 0:00:27]} 44. fxg3 {[%clk 0:00:43]}  Qg5 {[%clk 0:00:27]} 45. Kf2 {[%clk 0:00:42]}  Qxg3+ {[%clk 0:00:24]} 46. Ke2 {[%clk 0:00:42]}  Qg2+ {[%clk 0:00:24]} 47. Kd3 {[%clk 0:00:42]}  Qd5+ {[%clk 0:00:24]} 48. Ke2 {[%clk 0:00:43]}  Be5 {[%clk 0:00:23]} 49. h4 {[%clk 0:00:20]}  f5 {[%clk 0:00:19]} 50. Nc5 {[%clk 0:00:17]}  Qc4+ {[%clk 0:00:18]} 51. Kf3 {[%clk 0:00:16]}  Qg4+ {[%clk 0:00:18]} 52. Kf2 {[%clk 0:00:17]}  Qxh4+ {[%clk 0:00:19]} 53. Ke2 {[%clk 0:00:17]}  Qc4+ {[%clk 0:00:19]} 54. Kf3 {[%clk 0:00:17]}  Bg7 {[%clk 0:00:14]} 55. Qc7 {[%clk 0:00:16]}  g5 {[%clk 0:00:14]} 56. Kf2 {[%clk 0:00:09]}  g4 {[%clk 0:00:09]} 57. Qh2+ {[%clk 0:00:08]}  Kg6 {[%clk 0:00:10]} 58. Qd6+ {[%clk 0:00:07]}  Kh7 {[%clk 0:00:10]} 59. Ne6 {[%clk 0:00:07]}  Qc2+ {[%clk 0:00:06]} 60. Kf1 {[%clk 0:00:07]}  Qe4 {[%clk 0:00:00]} 61. Ng5+ {[%clk 0:00:06]} 1-0


[Site "https://www.chess.com"]

[Event "Titled Tuesday Blitz May 9 Early 2023"]
[White "Prohaszka, Peter"]
[Black "Kokoszczynski, Jan"]
[WhiteFideId "726265"]
[BlackFideId "1174460"]
[WhiteElo "2626"]
[BlackElo "2139"]
[Result "1-0"]
[Round "05"]
[TimeControl "180+2"]
[Date "2023.05.09"]
[WhiteClock "0:00:25"]
[BlackClock "0:00:01"]

1. d4 {[%clk 0:03:00]}  d5 {[%clk 0:02:57]} 2. c3 {[%clk 0:02:58]}  Nf6 {[%clk 0:02:54]} 3. Nf3 {[%clk 0:02:55]}  e6 {[%clk 0:02:54]} 4. Bg5 {[%clk 0:02:53]}  c5 {[%clk 0:02:48]} 5. Nbd2 {[%clk 0:02:45]}  cxd4 {[%clk 0:02:43]} 6. cxd4 {[%clk 0:02:45]}  Nc6 {[%clk 0:02:42]} 7. e3 {[%clk 0:02:44]}  Be7 {[%clk 0:02:41]} 8. Bd3 {[%clk 0:02:39]}  O-O {[%clk 0:02:40]} 9. O-O {[%clk 0:02:32]}  h6 {[%clk 0:02:38]} 10. Bh4 {[%clk 0:02:29]}  a6 {[%clk 0:02:28]} 11. Rc1 {[%clk 0:02:27]}  Bd7 {[%clk 0:02:25]} 12. Ne5 {[%clk 0:02:22]}  Nxe5 {[%clk 0:02:24]} 13. dxe5 {[%clk 0:02:23]}  Ne8 {[%clk 0:02:24]} 14. Bxe7 {[%clk 0:02:20]}  Qxe7 {[%clk 0:02:25]} 15. Qb3 {[%clk 0:02:07]}  Bc6 {[%clk 0:01:37]} 16. Nf3 {[%clk 0:02:03]}  Qd7 {[%clk 0:01:34]} 17. Bb1 {[%clk 0:01:51]}  g6 {[%clk 0:01:23]} 18. Nd4 {[%clk 0:01:46]}  Ng7 {[%clk 0:01:23]} 19. Rc5 {[%clk 0:01:19]}  Rfc8 {[%clk 0:01:21]} 20. Rfc1 {[%clk 0:01:18]}  Rc7 {[%clk 0:01:20]} 21. Qb6 {[%clk 0:01:06]}  Rac8 {[%clk 0:01:20]} 22. b4 {[%clk 0:01:03]}  Ne8 {[%clk 0:01:13]} 23. Bd3 {[%clk 0:00:49]}  Ba4 {[%clk 0:01:05]} 24. h4 {[%clk 0:00:46]}  Rxc5 {[%clk 0:00:49]} 25. bxc5 {[%clk 0:00:40]}  Bc6 {[%clk 0:00:46]} 26. Rb1 {[%clk 0:00:38]}  Nc7 {[%clk 0:00:18]} 27. Nxc6 {[%clk 0:00:37]}  bxc6 {[%clk 0:00:18]} 28. a4 {[%clk 0:00:37]}  d4 {[%clk 0:00:15]} 29. e4 {[%clk 0:00:37]}  h5 {[%clk 0:00:13]} 30. g3 {[%clk 0:00:37]}  Kg7 {[%clk 0:00:09]} 31. Qa7 {[%clk 0:00:35]}  Qe8 {[%clk 0:00:09]} 32. Rb7 {[%clk 0:00:34]}  Qd8 {[%clk 0:00:09]} 33. Qb6 {[%clk 0:00:33]}  Kg8 {[%clk 0:00:06]} 34. Ra7 {[%clk 0:00:28]}  Qd7 {[%clk 0:00:02]} 35. Kg2 {[%clk 0:00:25]}  Ne8 {[%clk 0:00:01]} 36. Rxd7 {[%clk 0:00:25]} 1-0


[Site "https://www.chess.com"]

[Event "Titled Tuesday Blitz May 9 Early 2023"]
[White "ArtemDyachuk"]
[Black "Hua, Lefong"]
[BlackFideId "2602253"]
[WhiteElo "2547"]
[BlackElo "2701"]
[Result "0-1"]
[Round "05"]
[TimeControl "180+2"]
[Date "2023.05.09"]
[WhiteClock "0:00:00"]
[BlackClock "0:00:12"]

1. Nf3 {[%clk 0:03:00]}  Nf6 {[%clk 0:03:00]} 2. b3 {[%clk 0:03:01]}  g6 {[%clk 0:03:00]} 3. Bb2 {[%clk 0:03:00]}  Bg7 {[%clk 0:03:01]} 4. e3 {[%clk 0:03:01]}  O-O {[%clk 0:03:01]} 5. d4 {[%clk 0:03:01]}  c5 {[%clk 0:03:01]} 6. Be2 {[%clk 0:02:59]}  d6 {[%clk 0:03:01]} 7. O-O {[%clk 0:02:58]}  Nc6 {[%clk 0:03:01]} 8. c4 {[%clk 0:02:58]}  Ne4 {[%clk 0:03:02]} 9. Qc2 {[%clk 0:02:57]}  Bf5 {[%clk 0:02:55]} 10. Nh4 {[%clk 0:02:46]}  cxd4 {[%clk 0:02:48]} 11. Nxf5 {[%clk 0:02:28]}  gxf5 {[%clk 0:02:48]} 12. Na3 {[%clk 0:01:32]}  d3 {[%clk 0:02:25]} 13. Bxd3 {[%clk 0:01:30]}  Nb4 {[%clk 0:02:25]} 14. Qe2 {[%clk 0:01:30]}  Bxb2 {[%clk 0:02:19]} 15. Bxe4 {[%clk 0:01:29]}  Bxa3 {[%clk 0:02:06]} 16. Bxf5 {[%clk 0:01:26]}  e6 {[%clk 0:01:55]} 17. Be4 {[%clk 0:01:25]}  Qe7 {[%clk 0:01:43]} 18. Rad1 {[%clk 0:01:09]}  f5 {[%clk 0:01:39]} 19. Bb1 {[%clk 0:01:08]}  Rad8 {[%clk 0:01:36]} 20. Kh1 {[%clk 0:01:01]}  d5 {[%clk 0:01:35]} 21. g4 {[%clk 0:00:54]}  Kh8 {[%clk 0:01:24]} 22. f4 {[%clk 0:00:42]}  Qc5 {[%clk 0:00:57]} 23. g5 {[%clk 0:00:25]}  dxc4 {[%clk 0:00:52]} 24. Qh5 {[%clk 0:00:25]}  Qe7 {[%clk 0:00:38]} 25. bxc4 {[%clk 0:00:14]}  Bb2 {[%clk 0:00:36]} 26. g6 {[%clk 0:00:11]}  Bf6 {[%clk 0:00:28]} 27. c5 {[%clk 0:00:06]}  Nd5 {[%clk 0:00:24]} 28. e4 {[%clk 0:00:06]}  Ne3 {[%clk 0:00:22]} 29. Rxd8 {[%clk 0:00:05]}  Rxd8 {[%clk 0:00:23]} 30. e5 {[%clk 0:00:05]}  Bxe5 {[%clk 0:00:16]} 31. Re1 {[%clk 0:00:02]}  Bxf4 {[%clk 0:00:15]} 32. Rg1 {[%clk 0:00:02]}  Be5 {[%clk 0:00:14]} 33. a3 {[%clk 0:00:00]}  Nd5 {[%clk 0:00:12]} 0-1


[Site "https://www.chess.com"]

[Event "Titled Tuesday Blitz May 9 Early 2023"]
[White "Staudenhocker43"]
[Black "bubeliang"]
[WhiteElo "2504"]
[BlackElo "2656"]
[Result "1-0"]
[Round "05"]
[TimeControl "180+2"]
[Date "2023.05.09"]
[WhiteClock "0:00:12"]
[BlackClock "0:00:01"]

1. c4 {[%clk 0:03:00]}  Nf6 {[%clk 0:02:57]} 2. Nc3 {[%clk 0:02:59]}  g6 {[%clk 0:02:56]} 3. e4 {[%clk 0:02:59]}  d6 {[%clk 0:02:56]} 4. d4 {[%clk 0:02:59]}  Bg7 {[%clk 0:02:55]} 5. f3 {[%clk 0:03:00]}  O-O {[%clk 0:02:55]} 6. Be3 {[%clk 0:03:00]}  Nc6 {[%clk 0:02:55]} 7. Nge2 {[%clk 0:03:00]}  e5 {[%clk 0:02:55]} 8. d5 {[%clk 0:03:00]}  Ne7 {[%clk 0:02:55]} 9. Qd2 {[%clk 0:03:00]}  Ne8 {[%clk 0:02:52]} 10. g4 {[%clk 0:02:59]}  f5 {[%clk 0:02:51]} 11. g5 {[%clk 0:03:00]}  a5 {[%clk 0:02:47]} 12. h4 {[%clk 0:02:59]}  b6 {[%clk 0:02:46]} 13. Nc1 {[%clk 0:02:49]}  f4 {[%clk 0:02:40]} 14. Bf2 {[%clk 0:02:48]}  h5 {[%clk 0:02:40]} 15. Nd3 {[%clk 0:02:38]}  Bb7 {[%clk 0:02:29]} 16. Bh3 {[%clk 0:02:37]}  Bc8 {[%clk 0:02:27]} 17. Bf1 {[%clk 0:02:27]}  Bd7 {[%clk 0:02:19]} 18. O-O-O {[%clk 0:02:27]}  c5 {[%clk 0:02:05]} 19. Bh3 {[%clk 0:02:19]}  Bxh3 {[%clk 0:02:01]} 20. Rxh3 {[%clk 0:02:20]}  Qd7 {[%clk 0:02:01]} 21. Rhh1 {[%clk 0:02:19]}  a4 {[%clk 0:01:59]} 22. Ne1 {[%clk 0:02:13]}  Nc7 {[%clk 0:01:56]} 23. Qd3 {[%clk 0:02:08]}  Rfb8 {[%clk 0:01:53]} 24. Nc2 {[%clk 0:02:07]}  b5 {[%clk 0:01:44]} 25. cxb5 {[%clk 0:02:00]}  Nxb5 {[%clk 0:01:45]} 26. Nxb5 {[%clk 0:02:00]}  Rxb5 {[%clk 0:01:37]} 27. Be1 {[%clk 0:01:59]}  Rab8 {[%clk 0:01:32]} 28. Bc3 {[%clk 0:01:59]}  Nc8 {[%clk 0:01:32]} 29. Na3 {[%clk 0:01:56]}  R5b7 {[%clk 0:01:31]} 30. Nc4 {[%clk 0:01:53]}  Qb5 {[%clk 0:01:20]} 31. Rh2 {[%clk 0:01:47]}  Ra8 {[%clk 0:01:11]} 32. Rc2 {[%clk 0:01:44]}  Bf8 {[%clk 0:01:05]} 33. Na3 {[%clk 0:01:31]}  Qb6 {[%clk 0:01:00]} 34. Qc4 {[%clk 0:01:27]}  Qd8 {[%clk 0:00:57]} 35. Qf1 {[%clk 0:01:19]}  Qd7 {[%clk 0:00:55]} 36. Nc4 {[%clk 0:01:14]}  Qb5 {[%clk 0:00:46]} 37. Kb1 {[%clk 0:00:55]}  Be7 {[%clk 0:00:40]} 38. Ka1 {[%clk 0:00:54]}  Nb6 {[%clk 0:00:34]} 39. Na5 {[%clk 0:00:38]}  Rxa5 {[%clk 0:00:30]} 40. Bxa5 {[%clk 0:00:38]}  Qxa5 {[%clk 0:00:31]} 41. Qh3 {[%clk 0:00:37]}  a3 {[%clk 0:00:26]} 42. Qe6+ {[%clk 0:00:33]}  Kg7 {[%clk 0:00:26]} 43. bxa3 {[%clk 0:00:28]}  Qxa3 {[%clk 0:00:21]} 44. Rb1 {[%clk 0:00:28]}  Qa6 {[%clk 0:00:14]} 45. Rcb2 {[%clk 0:00:27]}  Ra7 {[%clk 0:00:12]} 46. Rc2 {[%clk 0:00:18]}  Nc4 {[%clk 0:00:12]} 47. Rb8 {[%clk 0:00:16]}  Bf8 {[%clk 0:00:04]} 48. Qf6+ {[%clk 0:00:15]}  Kh7 {[%clk 0:00:01]} 49. Qxf8 {[%clk 0:00:12]} 1-0


[Site "https://www.chess.com"]

[Event "Titled Tuesday Blitz May 9 Early 2023"]
[White "Koellner, Ruben Gideon"]
[Black "Salman, Pavel"]
[WhiteFideId "12993093"]
[BlackFideId "24153753"]
[WhiteElo "2314"]
[BlackElo "2187"]
[Result "0-1"]
[Round "05"]
[TimeControl "180+2"]
[Date "2023.05.09"]
[WhiteClock "0:00:00"]
[BlackClock "0:00:07"]

1. d4 {[%clk 0:02:41]}  Nf6 {[%clk 0:02:59]} 2. Nf3 {[%clk 0:02:40]}  g6 {[%clk 0:02:57]} 3. Nbd2 {[%clk 0:02:39]}  d5 {[%clk 0:02:54]} 4. e3 {[%clk 0:02:40]}  Bg7 {[%clk 0:02:54]} 5. b4 {[%clk 0:02:40]}  O-O {[%clk 0:02:54]} 6. c4 {[%clk 0:02:39]}  c6 {[%clk 0:02:49]} 7. a4 {[%clk 0:02:38]}  Nbd7 {[%clk 0:02:46]} 8. Bb2 {[%clk 0:02:38]}  Re8 {[%clk 0:02:46]} 9. Be2 {[%clk 0:02:38]}  Ne4 {[%clk 0:02:25]} 10. Nxe4 {[%clk 0:02:30]}  dxe4 {[%clk 0:02:26]} 11. Nd2 {[%clk 0:02:31]}  e5 {[%clk 0:02:20]} 12. d5 {[%clk 0:02:30]}  cxd5 {[%clk 0:02:19]} 13. cxd5 {[%clk 0:02:30]}  Nf6 {[%clk 0:02:17]} 14. O-O {[%clk 0:02:27]}  Qxd5 {[%clk 0:02:15]} 15. Bc4 {[%clk 0:02:27]}  Qd6 {[%clk 0:02:09]} 16. Qb3 {[%clk 0:02:20]}  Be6 {[%clk 0:02:01]} 17. Rfd1 {[%clk 0:02:19]}  Qe7 {[%clk 0:01:51]} 18. b5 {[%clk 0:02:02]}  Rac8 {[%clk 0:01:38]} 19. Rac1 {[%clk 0:02:00]}  Bxc4 {[%clk 0:01:07]} 20. Nxc4 {[%clk 0:02:00]}  Qe6 {[%clk 0:01:05]} 21. Rd6 {[%clk 0:01:56]}  Qf5 {[%clk 0:01:04]} 22. Rd2 {[%clk 0:01:32]}  Red8 {[%clk 0:01:00]} 23. Rxd8+ {[%clk 0:01:15]}  Rxd8 {[%clk 0:01:01]} 24. h3 {[%clk 0:01:10]}  Qe6 {[%clk 0:00:48]} 25. Bxe5 {[%clk 0:01:05]}  Rd3 {[%clk 0:00:42]} 26. Qb2 {[%clk 0:01:03]}  Ne8 {[%clk 0:00:41]} 27. Bxg7 {[%clk 0:01:02]}  Nxg7 {[%clk 0:00:42]} 28. Na5 {[%clk 0:01:00]}  Nf5 {[%clk 0:00:20]} 29. Nxb7 {[%clk 0:00:56]}  Qd7 {[%clk 0:00:10]} 30. Nc5 {[%clk 0:00:40]}  Rd1+ {[%clk 0:00:10]} 31. Kh2 {[%clk 0:00:41]}  Qd6+ {[%clk 0:00:10]} 32. g3 {[%clk 0:00:40]}  Rd2 {[%clk 0:00:05]} 33. Nxe4 {[%clk 0:00:17]}  Rxb2 {[%clk 0:00:04]} 34. Nxd6 {[%clk 0:00:16]}  Nxd6 {[%clk 0:00:05]} 35. Rc7 {[%clk 0:00:15]}  Rxf2+ {[%clk 0:00:05]} 36. Kg1 {[%clk 0:00:15]}  Ra2 {[%clk 0:00:05]} 37. Rxa7 {[%clk 0:00:15]}  Nxb5 {[%clk 0:00:06]} 38. Ra8+ {[%clk 0:00:14]}  Kg7 {[%clk 0:00:06]} 39. a5 {[%clk 0:00:15]}  Nc3 {[%clk 0:00:06]} 40. g4 {[%clk 0:00:14]}  Ne2+ {[%clk 0:00:06]} 41. Kf1 {[%clk 0:00:13]}  Nc3 {[%clk 0:00:05]} 42. a6 {[%clk 0:00:13]}  Ne4 {[%clk 0:00:06]} 43. Ke1 {[%clk 0:00:10]}  h5 {[%clk 0:00:05]} 44. gxh5 {[%clk 0:00:10]}  gxh5 {[%clk 0:00:06]} 45. a7 {[%clk 0:00:11]}  Nf6 {[%clk 0:00:06]} 46. Kd1 {[%clk 0:00:10]}  h4 {[%clk 0:00:06]} 47. Kc1 {[%clk 0:00:10]}  Ra6 {[%clk 0:00:06]} 48. Kb2 {[%clk 0:00:10]}  Nd7 {[%clk 0:00:07]} 49. Kb3 {[%clk 0:00:04]}  Kf6 {[%clk 0:00:07]} 50. Kb4 {[%clk 0:00:00]}  Ra1 {[%clk 0:00:07]} 0-1


[Site "https://www.chess.com"]

[Event "Titled Tuesday Blitz May 9 Early 2023"]
[White "Korelskiy, Egor"]
[Black "Sethuraman, S.P."]
[WhiteFideId "34329064"]
[BlackFideId "5021596"]
[WhiteElo "2156"]
[BlackElo "2543"]
[Result "0-1"]
[Round "05"]
[TimeControl "180+2"]
[Date "2023.05.09"]
[WhiteClock "0:01:05"]
[BlackClock "0:01:46"]

1. e4 {[%clk 0:01:57]}  c5 {[%clk 0:02:55]} 2. Nf3 {[%clk 0:01:56]}  Nc6 {[%clk 0:02:54]} 3. Bb5 {[%clk 0:01:55]}  g6 {[%clk 0:02:52]} 4. O-O {[%clk 0:01:54]}  Bg7 {[%clk 0:02:52]} 5. c3 {[%clk 0:01:55]}  a6 {[%clk 0:02:50]} 6. Ba4 {[%clk 0:01:54]}  Nf6 {[%clk 0:02:45]} 7. Bc2 {[%clk 0:01:53]}  d6 {[%clk 0:02:33]} 8. d4 {[%clk 0:01:50]}  cxd4 {[%clk 0:02:33]} 9. cxd4 {[%clk 0:01:51]}  Bg4 {[%clk 0:02:34]} 10. Be3 {[%clk 0:01:50]}  Nd7 {[%clk 0:02:30]} 11. Nc3 {[%clk 0:01:48]}  Bxf3 {[%clk 0:02:25]} 12. gxf3 {[%clk 0:01:47]}  O-O {[%clk 0:02:26]} 13. d5 {[%clk 0:01:47]}  Nce5 {[%clk 0:02:23]} 14. Bd4 {[%clk 0:01:46]}  Nxf3+ {[%clk 0:02:22]} 15. Qxf3 {[%clk 0:01:45]}  Bxd4 {[%clk 0:02:23]} 16. Rfd1 {[%clk 0:01:44]}  Bg7 {[%clk 0:02:21]} 17. Bb3 {[%clk 0:01:41]}  Rc8 {[%clk 0:02:21]} 18. Rac1 {[%clk 0:01:40]}  Qb6 {[%clk 0:02:19]} 19. Na4 {[%clk 0:01:38]}  Qa5 {[%clk 0:02:13]} 20. Qe2 {[%clk 0:01:35]}  b5 {[%clk 0:02:10]} 21. Nc3 {[%clk 0:01:28]}  Bxc3 {[%clk 0:02:08]} 22. bxc3 {[%clk 0:01:27]}  Rxc3 {[%clk 0:02:09]} 23. Qd2 {[%clk 0:01:27]}  Rfc8 {[%clk 0:02:08]} 24. Kg2 {[%clk 0:01:19]}  Qc7 {[%clk 0:02:06]} 25. Rxc3 {[%clk 0:01:17]}  Qxc3 {[%clk 0:02:07]} 26. Qf4 {[%clk 0:01:17]}  Ne5 {[%clk 0:02:03]} 27. Rd2 {[%clk 0:01:15]}  Qb4 {[%clk 0:01:54]} 28. Qe3 {[%clk 0:01:14]}  Rc3 {[%clk 0:01:50]} 29. Qe1 {[%clk 0:01:05]}  Nf3 {[%clk 0:01:46]} 0-1


[Site "https://www.chess.com"]

[Event "Titled Tuesday Blitz May 9 Early 2023"]
[White "Martic, Ivan"]
[Black "Srihari L R"]
[WhiteFideId "929301"]
[BlackFideId "46617116"]
[WhiteElo "2360"]
[BlackElo "2334"]
[Result "0-1"]
[Round "05"]
[TimeControl "180+2"]
[Date "2023.05.09"]
[WhiteClock "0:00:03"]
[BlackClock "0:00:05"]

1. d4 {[%clk 0:03:00]}  e6 {[%clk 0:02:55]} 2. e4 {[%clk 0:02:59]}  d5 {[%clk 0:02:52]} 3. e5 {[%clk 0:03:00]}  c5 {[%clk 0:02:51]} 4. c3 {[%clk 0:03:00]}  Nc6 {[%clk 0:02:51]} 5. Nf3 {[%clk 0:03:01]}  Qb6 {[%clk 0:02:49]} 6. a3 {[%clk 0:03:00]}  c4 {[%clk 0:02:46]} 7. Nbd2 {[%clk 0:03:00]}  Bd7 {[%clk 0:02:45]} 8. Rb1 {[%clk 0:02:59]}  Na5 {[%clk 0:02:46]} 9. h4 {[%clk 0:02:59]}  Ne7 {[%clk 0:02:43]} 10. h5 {[%clk 0:02:59]}  h6 {[%clk 0:02:43]} 11. b4 {[%clk 0:02:59]}  cxb3 {[%clk 0:02:43]} 12. Nxb3 {[%clk 0:02:59]}  Ba4 {[%clk 0:02:30]} 13. Nxa5 {[%clk 0:02:58]}  Qxa5 {[%clk 0:01:48]} 14. Qd2 {[%clk 0:02:56]}  b6 {[%clk 0:01:45]} 15. Qb2 {[%clk 0:02:51]}  Rc8 {[%clk 0:01:41]} 16. Bd2 {[%clk 0:02:50]}  Rc4 {[%clk 0:01:32]} 17. Bxc4 {[%clk 0:02:47]}  dxc4 {[%clk 0:01:33]} 18. O-O {[%clk 0:02:35]}  Nd5 {[%clk 0:01:32]} 19. Rfc1 {[%clk 0:02:25]}  Bb3 {[%clk 0:01:31]} 20. Ra1 {[%clk 0:02:24]}  Ba4 {[%clk 0:01:16]} 21. Be3 {[%clk 0:02:17]}  Be7 {[%clk 0:01:15]} 22. Nd2 {[%clk 0:02:12]}  Qa6 {[%clk 0:01:15]} 23. Ne4 {[%clk 0:02:06]}  O-O {[%clk 0:01:13]} 24. Qd2 {[%clk 0:02:01]}  Kh7 {[%clk 0:01:08]} 25. Nd6 {[%clk 0:01:41]}  f5 {[%clk 0:00:32]} 26. Bf4 {[%clk 0:01:29]}  b5 {[%clk 0:00:32]} 27. g3 {[%clk 0:01:18]}  Qc6 {[%clk 0:00:30]} 28. Re1 {[%clk 0:01:10]}  Rb8 {[%clk 0:00:25]} 29. Rec1 {[%clk 0:01:02]}  a5 {[%clk 0:00:25]} 30. Qe2 {[%clk 0:00:59]}  Bb3 {[%clk 0:00:16]} 31. Qd2 {[%clk 0:00:47]}  b4 {[%clk 0:00:15]} 32. axb4 {[%clk 0:00:47]}  axb4 {[%clk 0:00:16]} 33. Ra7 {[%clk 0:00:45]}  bxc3 {[%clk 0:00:15]} 34. Rxc3 {[%clk 0:00:41]}  Nxc3 {[%clk 0:00:08]} 35. Rxe7 {[%clk 0:00:35]}  Ne4 {[%clk 0:00:05]} 36. Nxe4 {[%clk 0:00:34]}  Qxe4 {[%clk 0:00:05]} 37. Bxh6 {[%clk 0:00:34]}  Rg8 {[%clk 0:00:05]} 38. Qg5 {[%clk 0:00:27]}  Qg4 {[%clk 0:00:04]} 39. Qxg4 {[%clk 0:00:14]}  fxg4 {[%clk 0:00:05]} 40. Bd2 {[%clk 0:00:15]}  c3 {[%clk 0:00:06]} 41. Bxc3 {[%clk 0:00:14]}  Bd5 {[%clk 0:00:07]} 42. Bd2 {[%clk 0:00:12]}  Rb8 {[%clk 0:00:05]} 43. f4 {[%clk 0:00:10]}  gxf3 {[%clk 0:00:05]} 44. h6 {[%clk 0:00:11]}  Rb1+ {[%clk 0:00:05]} 45. Kf2 {[%clk 0:00:11]}  Rb2 {[%clk 0:00:05]} 46. Rxg7+ {[%clk 0:00:11]}  Kh8 {[%clk 0:00:06]} 47. Ke3 {[%clk 0:00:10]}  Rb3+ {[%clk 0:00:06]} 48. Kf4 {[%clk 0:00:09]}  f2 {[%clk 0:00:07]} 49. Kg5 {[%clk 0:00:06]}  f1=Q {[%clk 0:00:07]} 50. Bf4 {[%clk 0:00:06]}  Rb8 {[%clk 0:00:04]} 51. Kg6 {[%clk 0:00:04]}  Qd3+ {[%clk 0:00:03]} 52. Kf6 {[%clk 0:00:04]}  Qf5+ {[%clk 0:00:04]} 53. Ke7 {[%clk 0:00:04]}  Rb7+ {[%clk 0:00:04]} 54. Kd6 {[%clk 0:00:04]}  Rxg7 {[%clk 0:00:05]} 55. hxg7+ {[%clk 0:00:03]}  Kxg7 {[%clk 0:00:05]} 0-1


[Site "https://www.chess.com"]

[Event "Titled Tuesday Blitz May 9 Early 2023"]
[White "Matinian, Nikita"]
[Black "Aakanksha Hagawane"]
[WhiteFideId "24129100"]
[BlackFideId "25014510"]
[WhiteElo "2422"]
[BlackElo "2081"]
[Result "1-0"]
[Round "05"]
[TimeControl "180+2"]
[Date "2023.05.09"]
[WhiteClock "0:00:04"]
[BlackClock "0:00:16"]

1. e4 {[%clk 0:02:54]}  e5 {[%clk 0:02:59]} 2. Nf3 {[%clk 0:02:54]}  Nc6 {[%clk 0:02:59]} 3. Bb5 {[%clk 0:02:55]}  a6 {[%clk 0:02:58]} 4. Ba4 {[%clk 0:02:55]}  Nf6 {[%clk 0:02:59]} 5. O-O {[%clk 0:02:55]}  Nxe4 {[%clk 0:02:51]} 6. d4 {[%clk 0:02:55]}  b5 {[%clk 0:02:50]} 7. Bb3 {[%clk 0:02:56]}  d5 {[%clk 0:02:51]} 8. dxe5 {[%clk 0:02:56]}  Be6 {[%clk 0:02:51]} 9. Nbd2 {[%clk 0:02:57]}  Be7 {[%clk 0:02:50]} 10. Qe2 {[%clk 0:02:54]}  Nc5 {[%clk 0:02:40]} 11. c3 {[%clk 0:02:54]}  Nxb3 {[%clk 0:02:30]} 12. Nxb3 {[%clk 0:02:54]}  O-O {[%clk 0:02:30]} 13. Rd1 {[%clk 0:02:51]}  Qc8 {[%clk 0:02:22]} 14. h3 {[%clk 0:02:51]}  f6 {[%clk 0:02:18]} 15. exf6 {[%clk 0:02:51]}  Bxf6 {[%clk 0:02:18]} 16. Nc5 {[%clk 0:02:48]}  Bf5 {[%clk 0:02:18]} 17. Rxd5 {[%clk 0:02:46]}  Re8 {[%clk 0:01:59]} 18. Be3 {[%clk 0:02:46]}  Ne5 {[%clk 0:01:53]} 19. Rad1 {[%clk 0:02:39]}  Bxh3 {[%clk 0:01:37]} 20. Nxe5 {[%clk 0:02:39]}  Bxe5 {[%clk 0:01:35]} 21. R1d2 {[%clk 0:00:32]}  Bg4 {[%clk 0:01:01]} 22. Qd3 {[%clk 0:00:32]}  c6 {[%clk 0:00:55]} 23. Rxe5 {[%clk 0:00:25]}  Rxe5 {[%clk 0:00:55]} 24. Qd6 {[%clk 0:00:25]}  Qe8 {[%clk 0:00:51]} 25. b4 {[%clk 0:00:09]}  Bh5 {[%clk 0:00:39]} 26. Rd4 {[%clk 0:00:06]}  Bf7 {[%clk 0:00:38]} 27. Rf4 {[%clk 0:00:04]}  Bxa2 {[%clk 0:00:34]} 28. Bd4 {[%clk 0:00:03]}  Re1+ {[%clk 0:00:31]} 29. Kh2 {[%clk 0:00:04]}  Qh5+ {[%clk 0:00:31]} 30. Kg3 {[%clk 0:00:04]}  Rae8 {[%clk 0:00:27]} 31. Rg4 {[%clk 0:00:04]}  g6 {[%clk 0:00:25]} 32. Qf6 {[%clk 0:00:04]}  R1e7 {[%clk 0:00:16]} 33. Qh8+ {[%clk 0:00:04]} 1-0


[Site "https://www.chess.com"]